fUST/lending_fUST_20250609
["ID","MTS","AMOUNT","RATE_DAILY","PERIOD"]
[365073980,1749443433230,-439.95101852,0.00019178,2]
[365073981,1749443433243,-440.0,0.00019178,2]
[365073982,1749443433256,-508.67581737,0.00019178,2]
[365073983,1749443433270,-440.0,0.00019178,2]
[365073984,1749443433281,-440.0,0.00019178,2]
[365073985,1749443433291,-170.92192624,0.00019178,2]
[365073986,1749443433302,-440.0,0.00019178,2]
[365073987,1749443433313,-440.0,0.00019178,2]
[365073988,1749443433324,-438.27894563,0.00019178,2]
[365073989,1749443433336,-430.0,0.00019178,2]
[365073990,1749443433350,-283.90510904,0.00019178,2]
[365073991,1749443433364,-404.20926906,0.00019178,2]
[365073992,1749443433377,-430.0,0.00019178,2]
[365073993,1749443433391,-440.0,0.00019178,2]
[365073994,1749443433402,-430.0,0.00019178,2]
[365073995,1749443433413,-430.0,0.00019178,2]
[365073996,1749443433425,-449.24691921,0.00019178,2]
[365073997,1749443433436,-440.0,0.00019178,2]
[365073998,1749443433447,-430.0,0.00019178,2]
[365073999,1749443433461,-430.0,0.00019178,2]
[365074000,1749443433475,-412.6602863,0.00019178,2]
[365074001,1749443433487,-440.0,0.00019178,2]
[365074002,1749443433499,-430.0,0.00019178,2]
[365074003,1749443433510,-440.0,0.00019178,2]
[365074004,1749443433521,-440.0,0.00019178,2]
[365074005,1749443433532,-433.0094913,0.00019178,2]
[365074006,1749443433544,-448.0,0.00019178,2]
[365074007,1749443433557,-440.0,0.00019178,2]
[365074008,1749443433569,-440.0,0.00019178,2]
[365074009,1749443433582,-401.29068683,0.00019178,2]
[365074010,1749443433593,-440.0,0.00019178,2]
[365074011,1749443433605,-345.94026912,0.00019178,2]
[365074012,1749443433617,-430.0,0.00019178,2]
[365074013,1749443433629,-440.0,0.00019178,2]
[365074014,1749443433640,-500.0,0.00019178,2]
[365074015,1749443433652,-440.0,0.00019178,2]
[365074016,1749443433663,-440.0,0.00019178,2]
[365074017,1749443433675,-430.0,0.00019178,2]
[365074018,1749443433687,-228.39771863,0.00019178,2]
[365074019,1749443433698,-430.0,0.00019178,2]
[365074020,1749443433709,-440.0,0.00019178,2]
[365074021,1749443433720,-440.0,0.00019178,2]
[365074022,1749443433731,-440.0,0.00019178,2]
[365074023,1749443433742,-434.66348894,0.00019178,2]
[365074024,1749443433753,-440.0,0.00019178,2]
[365074025,1749443433764,-430.0,0.00019178,2]
[365074026,1749443433776,-440.0,0.00019178,2]
[365074027,1749443433787,-430.0,0.00019178,2]
[365074028,1749443433799,-450.74069204,0.00019178,2]
[365074029,1749443433815,-440.0,0.00019178,2]
[365074030,1749443433827,-430.0,0.00019178,2]
[365074031,1749443433838,-420.18859259,0.00019178,2]
[365074032,1749443433850,-440.0,0.00019178,2]
[365074033,1749443433865,-402.62252789,0.00019178,2]
[365074034,1749443433876,-403.39697874,0.00019178,2]
[365074035,1749443433888,-440.0,0.00019178,2]
[365074036,1749443433900,-440.0,0.00019178,2]
[365074037,1749443433912,-440.0,0.00019178,2]
[365074038,1749443433924,-436.99387,0.00019178,2]
[365074039,1749443433937,-440.0,0.00019178,2]
[365074040,1749443433949,-430.0,0.00019178,2]
[365074041,1749443433961,-440.0,0.00019178,2]
[365074042,1749443433972,-483.54959332,0.00019178,2]
[365074043,1749443433984,-430.0,0.00019178,2]
[365074044,1749443433996,-440.0,0.00019178,2]
[365074045,1749443434007,-440.0,0.00019178,2]
[365074046,1749443434019,-464.3297887,0.00019178,2]
[365074047,1749443434030,-440.0,0.00019178,2]
[365074048,1749443434041,-440.0,0.00019178,2]
[365074049,1749443434053,-440.0,0.00019178,2]
[365074050,1749443434065,-440.0,0.00019178,2]
[365074051,1749443434077,-563.24984474,0.00019178,2]
[365074052,1749443434089,-440.0,0.00019178,2]
[365074053,1749443434100,-835.05,0.00019178,2]
[365074054,1749443434110,-440.0,0.00019178,2]
[365074055,1749443434120,-440.0,0.00019178,2]
[365074056,1749443434131,-440.0,0.00019178,2]
[365074057,1749443434141,-440.0,0.00019178,2]
[365074058,1749443434151,-440.0,0.00019178,2]
[365074059,1749443434303,-440.0,0.00019178,2]
[365074060,1749443434336,-440.0,0.00019178,2]
[365074061,1749443434348,-440.0,0.00019178,2]
[365074062,1749443434357,-434.8338154,0.00019178,2]
[365074063,1749443434367,-462.94460843,0.00019178,2]
[365074064,1749443434377,-440.0,0.00019178,2]
[365074065,1749443434387,-440.0,0.00019178,2]
[365074066,1749443434396,-440.0,0.00019178,2]
[365074067,1749443434406,-708.25,0.00019178,2]
[365074068,1749443434416,-440.0,0.00019178,2]
[365074069,1749443434425,-169.48055063,0.00019178,2]
[365074070,1749443434435,-435.983117,0.00019178,2]
[365074071,1749443434445,-440.0,0.00019178,2]
[365074072,1749443434456,-335.40509036,0.00019178,2]
[365074073,1749443434465,-440.0,0.00019178,2]
[365074074,1749443434476,-440.0,0.00019178,2]
[365074075,1749443434485,-440.0,0.00019178,2]
[365074076,1749443434495,-440.0,0.00019178,2]
[365074077,1749443434505,-430.0,0.00019178,2]
[365074078,1749443434515,-521.98,0.00019178,2]
[365074079,1749443434525,-1588.95,0.00019178,2]
[365074080,1749443434534,-440.0,0.00019178,2]
[365074081,1749443434544,-440.0,0.00019178,2]
[365074082,1749443434555,-440.0,0.00019178,2]
[365074083,1749443434565,-440.0,0.00019178,2]
[365074084,1749443434575,-440.0,0.00019178,2]
[365074085,1749443434585,-440.0,0.00019178,2]
[365074086,1749443434594,-440.0,0.00019178,2]
[365074087,1749443434604,-440.0,0.00019178,2]
[365074088,1749443434613,-440.0,0.00019178,2]
[365074089,1749443434623,-799.94,0.00019178,2]
[365074090,1749443434635,-440.0,0.00019178,2]
[365074091,1749443434645,-440.0,0.00019178,2]
[365074092,1749443434655,-440.0,0.00019178,2]
[365074093,1749443434664,-788.53,0.00019178,2]
[365074094,1749443434674,-152.17912101,0.00019178,2]
[365074095,1749443434684,-491.03676348,0.00019178,2]
[365074096,1749443434694,-440.0,0.00019178,2]
[365074097,1749443434704,-440.0,0.00019178,2]
[365074098,1749443434714,-440.0,0.00019178,2]
[365074099,1749443434723,-440.0,0.00019178,2]
[365074100,1749443434733,-440.0,0.00019178,2]
[365074101,1749443434743,-440.0,0.00019178,2]
[365074102,1749443434752,-440.0,0.00019178,2]
[365074103,1749443434762,-497.75993381,0.00019178,2]
[365074104,1749443434771,-440.0,0.00019178,2]
[365074105,1749443434781,-440.0,0.00019178,2]
[365074106,1749443434791,-440.0,0.00019178,2]
[365074107,1749443434800,-1125.89,0.00019178,2]
[365074108,1749443434809,-440.0,0.00019178,2]
[365074109,1749443434819,-960.15,0.00019178,2]
[365074110,1749443434829,-440.0,0.00019178,2]
[365074111,1749443434839,-440.0,0.00019178,2]
[365074112,1749443434850,-660.54,0.00019178,2]
[365074113,1749443434863,-440.0,0.00019178,2]
[365074114,1749443434873,-440.0,0.00019178,2]
[365074115,1749443434883,-440.0,0.00019178,2]
[365074116,1749443434892,-440.0,0.00019178,2]
[365074117,1749443434902,-440.0,0.00019178,2]
[365074118,1749443434913,-440.0,0.00019178,2]
[365074119,1749443434922,-440.0,0.00019178,2]
[365074120,1749443434932,-472.93453681,0.00019178,2]
[365074121,1749443434942,-1594.69,0.00019178,2]
[365074122,1749443434953,-430.0,0.00019178,2]
[365074123,1749443434963,-440.0,0.00019178,2]
[365074124,1749443434973,-1416.3,0.00019178,2]
[365074125,1749443434983,-440.0,0.00019178,2]
[365074126,1749443434994,-1347.81,0.00019178,2]
[365074127,1749443435004,-440.0,0.00019178,2]
[365074128,1749443435014,-440.0,0.00019178,2]
[365074129,1749443435024,-440.0,0.00019178,2]
[365074130,1749443435033,-1506.65,0.00019178,2]
[365074131,1749443435042,-440.0,0.00019178,2]
[365074132,1749443435052,-440.0,0.00019178,2]
[365074133,1749443435063,-500.4602774,0.00019178,2]
[365074134,1749443435072,-440.0,0.00019178,2]
[365074135,1749443435082,-440.0,0.00019178,2]
[365074136,1749443435091,-440.0,0.00019178,2]
[365074137,1749443435101,-383.02709817,0.00019178,2]
[365074138,1749443435111,-440.0,0.00019178,2]
[365074139,1749443435121,-440.0,0.00019178,2]
[365074140,1749443435131,-628.75,0.00019178,2]
[365074141,1749443435142,-440.0,0.00019178,2]
[365074142,1749443435151,-440.0,0.00019178,2]
[365074143,1749443435161,-440.0,0.00019178,2]
[365074144,1749443435170,-440.0,0.00019178,2]
[365074145,1749443435180,-440.0,0.00019178,2]
[365074146,1749443435190,-440.0,0.00019178,2]
[365074147,1749443435200,-440.0,0.00019178,2]
[365074148,1749443435210,-518.6054909,0.00019178,2]
[365074149,1749443435220,-1595.32878171,0.00019352,2]
[365074150,1749443435229,-420.0,0.00019452,2]
[365074151,1749443435239,-360.02382723,0.00019452,2]
[365074152,1749443435248,-440.0,0.00019452,2]
[365074153,1749443435258,-482.74670847,0.00019452,2]
[365074154,1749443435267,-440.0,0.00019452,2]
[365074155,1749443435277,-430.84331326,0.00019452,2]
[365074156,1749443435286,-379.67092726,0.00019452,2]
[365074157,1749443435296,-440.0,0.00019452,2]
[365074158,1749443435305,-420.0,0.00019452,2]
[365074159,1749443435315,-440.0,0.00019452,2]
[365074160,1749443435324,-440.0,0.00019452,2]
[365074161,1749443435333,-440.0,0.00019452,2]
[365074162,1749443435343,-440.0,0.00019452,2]
[365074163,1749443435353,-189.08745248,0.00019452,2]
[365074164,1749443435363,-485.497221,0.00019452,2]
[365074165,1749443435372,-404.25872073,0.00019452,2]
[365074166,1749443435381,-335.52765172,0.00019452,2]
[365074167,1749443435391,-440.0,0.00019452,2]
[365074168,1749443435401,-396.51758692,0.00019452,2]
[365074169,1749443435411,-440.0,0.00019452,2]
[365074170,1749443435420,-420.976198,0.00019452,2]
[365074171,1749443435430,-440.0,0.00019452,2]
[365074172,1749443435440,-541.49666462,0.00019452,2]
[365074173,1749443435449,-440.0,0.00019452,2]
[365074174,1749443435459,-440.0,0.00019452,2]
[365074175,1749443435469,-440.0,0.00019452,2]
[365074176,1749443435479,-440.0,0.00019452,2]
[365074177,1749443435488,-420.0,0.00019452,2]
[365074178,1749443435498,-440.0,0.00019452,2]
[365074179,1749443435507,-420.0,0.00019452,2]
[365074180,1749443435518,-255.05680406,0.00019452,2]
[365074181,1749443435527,-506.63457666,0.00019452,2]
[365074182,1749443435537,-420.0,0.00019452,2]
[365074183,1749443435547,-434.57269517,0.00019452,2]
[365074184,1749443435557,-429.25404557,0.00019452,2]
[365074185,1749443435567,-440.0,0.00019452,2]
[365074186,1749443435576,-440.0,0.00019452,2]
[365074187,1749443435587,-440.0,0.00019452,2]
[365074188,1749443435596,-440.0,0.00019452,2]
[365074189,1749443435606,-440.0,0.00019452,2]
[365074190,1749443435616,-420.0,0.00019452,2]
[365074191,1749443435626,-420.0,0.00019452,2]
[365074192,1749443435636,-440.0,0.00019452,2]
[365074193,1749443435647,-440.0,0.00019452,2]
[365074194,1749443435657,-440.0,0.00019452,2]
[365074195,1749443435667,-440.0,0.00019452,2]
[365074196,1749443435677,-440.0,0.00019452,2]
[365074197,1749443435687,-440.0,0.00019452,2]
[365074198,1749443435696,-440.0,0.00019452,2]
[365074199,1749443435706,-440.0,0.00019452,2]
[365074200,1749443435716,-440.0,0.00019452,2]
[365074201,1749443435725,-440.0,0.00019452,2]
[365074202,1749443435735,-835.05,0.00019452,2]
[365074203,1749443435744,-440.0,0.00019452,2]
[365074204,1749443435754,-440.0,0.00019452,2]
[365074205,1749443435764,-440.0,0.00019452,2]
[365074206,1749443435773,-440.0,0.00019452,2]
[365074207,1749443435783,-440.0,0.00019452,2]
[365074208,1749443435793,-440.0,0.00019452,2]
[365074209,1749443435803,-440.0,0.00019452,2]
[365074210,1749443435813,-440.0,0.00019452,2]
[365074211,1749443435823,-426.73683971,0.00019452,2]
[365074212,1749443435833,-440.0,0.00019452,2]
[365074213,1749443435843,-440.0,0.00019452,2]
[365074214,1749443435855,-708.25,0.00019452,2]
[365074215,1749443435873,-440.0,0.00019452,2]
[365074216,1749443435883,-420.0,0.00019452,2]
[365074217,1749443435893,-440.0,0.00019452,2]
[365074218,1749443435903,-420.0,0.00019452,2]
[365074219,1749443435913,-440.0,0.00019452,2]
[365074220,1749443435923,-431.69350052,0.00019452,2]
[365074221,1749443435933,-521.98,0.00019452,2]
[365074222,1749443435945,-1588.95,0.00019452,2]
[365074223,1749443435955,-440.0,0.00019452,2]
[365074224,1749443435965,-420.0,0.00019452,2]
[365074225,1749443435974,-440.0,0.00019452,2]
[365074226,1749443435983,-440.0,0.00019452,2]
[365074227,1749443435994,-440.0,0.00019452,2]
[365074228,1749443436003,-440.0,0.00019452,2]
[365074229,1749443436012,-440.0,0.00019452,2]
[365074230,1749443436024,-440.0,0.00019452,2]
[365074231,1749443436034,-799.94,0.00019452,2]
[365074232,1749443436044,-440.0,0.00019452,2]
[365074233,1749443436053,-440.0,0.00019452,2]
[365074234,1749443436063,-440.0,0.00019452,2]
[365074235,1749443436073,-788.53,0.00019452,2]
[365074236,1749443436083,-440.0,0.00019452,2]
[365074237,1749443436092,-440.0,0.00019452,2]
[365074238,1749443436102,-440.0,0.00019452,2]
[365074239,1749443436112,-420.0,0.00019452,2]
[365074240,1749443436122,-440.0,0.00019452,2]
[365074241,1749443436132,-440.0,0.00019452,2]
[365074242,1749443436141,-440.0,0.00019452,2]
[365074243,1749443436151,-532.2617709,0.00019452,2]
[365074244,1749443436160,-1125.89,0.00019452,2]
[365074245,1749443436169,-440.0,0.00019452,2]
[365074246,1749443436179,-960.15,0.00019452,2]
[365074247,1749443436188,-440.0,0.00019452,2]
[365074248,1749443436198,-440.0,0.00019452,2]
[365074249,1749443436208,-660.54,0.00019452,2]
[365074250,1749443436218,-440.0,0.00019452,2]
[365074251,1749443436227,-440.0,0.00019452,2]
[365074252,1749443436238,-440.0,0.00019452,2]
[365074253,1749443436247,-440.0,0.00019452,2]
[365074254,1749443436257,-440.0,0.00019452,2]
[365074255,1749443436267,-440.0,0.00019452,2]
[365074256,1749443436276,-440.0,0.00019452,2]
[365074257,1749443436285,-1594.69,0.00019452,2]
[365074258,1749443436295,-440.0,0.00019452,2]
[365074259,1749443436304,-1416.3,0.00019452,2]
[365074260,1749443436314,-440.0,0.00019452,2]
[365074261,1749443436323,-1347.81,0.00019452,2]
[365074262,1749443436333,-426.67791407,0.00019452,2]
[365074263,1749443436342,-440.0,0.00019452,2]
[365074264,1749443436354,-1506.65,0.00019452,2]
[365074265,1749443436363,-440.0,0.00019452,2]
[365074266,1749443436373,-440.0,0.00019452,2]
[365074267,1749443436384,-440.0,0.00019452,2]
[365074268,1749443436394,-440.0,0.00019452,2]
[365074269,1749443436404,-440.0,0.00019452,2]
[365074270,1749443436414,-440.0,0.00019452,2]
[365074271,1749443436424,-628.75,0.00019452,2]
[365074272,1749443436436,-440.0,0.00019452,2]
[365074273,1749443436447,-438.21302618,0.00019452,2]
[365074274,1749443436456,-440.0,0.00019452,2]
[365074275,1749443436466,-440.0,0.00019452,2]
[365074276,1749443436476,-440.0,0.00019452,2]
[365074277,1749443436485,-440.0,0.00019452,2]
[365074278,1749443436496,-440.0,0.00019452,2]
[365074279,1749443436506,-150.0,0.00019481,2]
[365074280,1749443436515,-500.0,0.0001962,2]
[365074281,1749443436525,-337.40017513,0.00019726,2]
[365074282,1749443436534,-440.0,0.00019726,2]
[365074283,1749443436544,-440.0,0.00019726,2]
[365074284,1749443436554,-440.0,0.00019726,2]
[365074285,1749443436564,-500.25439007,0.00019726,2]
[365074286,1749443436573,-440.0,0.00019726,2]
[365074287,1749443436582,-410.0,0.00019726,2]
[365074288,1749443436591,-440.0,0.00019726,2]
[365074289,1749443436601,-440.0,0.00019726,2]
[365074290,1749443436610,-440.0,0.00019726,2]
[365074291,1749443436621,-440.0,0.00019726,2]
[365074292,1749443436630,-451.34292989,0.00019726,2]
[365074293,1749443436640,-440.0,0.00019726,2]
[365074294,1749443436649,-440.0,0.00019726,2]
[365074295,1749443436659,-440.0,0.00019726,2]
[365074296,1749443436668,-440.0,0.00019726,2]
[365074297,1749443436678,-440.0,0.00019726,2]
[365074298,1749443436688,-440.0,0.00019726,2]
[365074299,1749443436697,-835.05,0.00019726,2]
[365074300,1749443436707,-440.0,0.00019726,2]
[365074301,1749443436717,-440.0,0.00019726,2]
[365074302,1749443436726,-440.0,0.00019726,2]
[365074303,1749443436736,-440.0,0.00019726,2]
[365074304,1749443436745,-455.59789162,0.00019726,2]
[365074305,1749443436755,-440.0,0.00019726,2]
[365074306,1749443436767,-440.0,0.00019726,2]
[365074307,1749443436777,-440.0,0.00019726,2]
[365074308,1749443436786,-440.0,0.00019726,2]
[365074309,1749443436796,-440.0,0.00019726,2]
[365074310,1749443436805,-708.25,0.00019726,2]
[365074311,1749443436815,-440.0,0.00019726,2]
[365074312,1749443436825,-440.0,0.00019726,2]
[365074313,1749443436834,-440.0,0.00019726,2]
[365074314,1749443436844,-521.98,0.00019726,2]
[365074315,1749443436856,-1588.95,0.00019726,2]
[365074316,1749443436866,-440.0,0.00019726,2]
[365074317,1749443436876,-440.0,0.00019726,2]
[365074318,1749443436885,-440.0,0.00019726,2]
[365074319,1749443436895,-440.0,0.00019726,2]
[365074320,1749443436904,-440.0,0.00019726,2]
[365074321,1749443436914,-185.5395508,0.00019726,2]
[365074322,1749443436924,-440.0,0.00019726,2]
[365074323,1749443436934,-799.94,0.00019726,2]
[365074324,1749443436943,-460.02,0.00019726,2]
[365074325,1749443436953,-410.0,0.00019726,2]
[365074326,1749443436962,-788.53,0.00019726,2]
[365074327,1749443436972,-440.0,0.00019726,2]
[365074328,1749443436982,-440.0,0.00019726,2]
[365074329,1749443436992,-440.0,0.00019726,2]
[365074330,1749443437002,-410.0,0.00019726,2]
[365074331,1749443437012,-502.83896586,0.00019726,2]
[365074332,1749443437022,-440.0,0.00019726,2]
[365074333,1749443437032,-1125.89,0.00019726,2]
[365074334,1749443437042,-410.0,0.00019726,2]
[365074335,1749443437052,-960.15,0.00019726,2]
[365074336,1749443437061,-660.54,0.00019726,2]
[365074337,1749443437071,-440.0,0.00019726,2]
[365074338,1749443437081,-440.0,0.00019726,2]
[365074339,1749443437091,-534.90671238,0.00019726,2]
[365074340,1749443437100,-440.0,0.00019726,2]
[365074341,1749443437109,-1594.69,0.00019726,2]
[365074342,1749443437119,-1416.3,0.00019726,2]
[365074343,1749443437130,-440.0,0.00019726,2]
[365074344,1749443437139,-1347.81,0.00019726,2]
[365074345,1749443437148,-440.0,0.00019726,2]
[365074346,1749443437158,-1506.65,0.00019726,2]
[365074347,1749443437167,-440.0,0.00019726,2]
[365074348,1749443437176,-410.0,0.00019726,2]
[365074349,1749443437185,-440.0,0.00019726,2]
[365074350,1749443437195,-440.0,0.00019726,2]
[365074351,1749443437204,-440.0,0.00019726,2]
[365074352,1749443437214,-628.75,0.00019726,2]
[365074353,1749443437223,-440.0,0.00019726,2]
[365074354,1749443437232,-440.0,0.00019726,2]
[365074355,1749443437242,-440.0,0.00019726,2]
[365074356,1749443437251,-400.0,0.00019726,2]
[365074357,1749443437260,-338.2567276,0.00019726,2]
[365074358,1749443437269,-1000.0,0.000198,2]
[365074359,1749443437278,-1156.73324981,0.000199,2]
[365074360,1749443437287,-161.66817504,0.00019999,2]
[365074361,1749443437296,-400.0,0.0002,2]
[365074362,1749443437305,-400.0,0.0002,2]
[365074363,1749443437315,-404.72942855,0.0002,2]
[365074364,1749443437324,-491.96362287,0.0002,2]
[365074365,1749443437333,-440.0,0.0002,2]
[365074366,1749443437343,-440.0,0.0002,2]
[365074367,1749443437352,-440.0,0.0002,2]
[365074368,1749443437362,-400.0,0.0002,2]
[365074369,1749443437372,-835.05,0.0002,2]
[365074370,1749443437383,-541.7137871,0.0002,2]
[365074371,1749443437395,-440.0,0.0002,2]
[365074372,1749443437405,-365.98323056,0.0002,2]
[365074373,1749443437559,-414.43014427,0.0002,2]
[365074374,1749443437570,-440.0,0.0002,2]
[365074376,1749443437580,-708.25,0.0002,2]
[365074378,1749443437590,-440.0,0.0002,2]
[365074380,1749443437599,-440.0,0.0002,2]
[365074381,1749443437609,-449.92339111,0.0002,2]
[365074382,1749443437618,-521.98,0.0002,2]
[365074383,1749443437628,-1588.95,0.0002,2]
[365074385,1749443437638,-400.0,0.0002,2]
[365074387,1749443437648,-400.0,0.0002,2]
[365074389,1749443437658,-440.0,0.0002,2]
[365074391,1749443437668,-303.23133789,0.0002,2]
[365074393,1749443437678,-440.0,0.0002,2]
[365074395,1749443437687,-497.14944358,0.0002,2]
[365074397,1749443437697,-799.94,0.0002,2]
[365074399,1749443437707,-788.53,0.0002,2]
[365074401,1749443437716,-408.88069575,0.0002,2]
[365074403,1749443437726,-400.0,0.0002,2]
[365074406,1749443437735,-440.0,0.0002,2]
[365074409,1749443437746,-440.0,0.0002,2]
[365074411,1749443437756,-1125.89,0.0002,2]
[365074413,1749443437766,-960.15,0.0002,2]
[365074415,1749443437776,-660.54,0.0002,2]
[365074418,1749443437786,-400.0,0.0002,2]
[365074420,1749443437797,-440.0,0.0002,2]
[365074422,1749443437807,-440.0,0.0002,2]
[365074423,1749443437817,-1594.69,0.0002,2]
[365074424,1749443437827,-1416.3,0.0002,2]
[365074425,1749443437836,-1347.81,0.0002,2]
[365074426,1749443437846,-440.0,0.0002,2]
[365074427,1749443437859,-1506.65,0.0002,2]
[365074428,1749443437869,-440.0,0.0002,2]
[365074429,1749443437879,-440.0,0.0002,2]
[365074430,1749443437888,-400.0,0.0002,2]
[365074431,1749443437898,-440.0,0.0002,2]
[365074432,1749443437908,-628.75,0.0002,2]
[365074433,1749443437918,-440.0,0.0002,2]
[365074434,1749443437928,-400.0,0.0002,2]
[365074435,1749443437940,-440.0,0.0002,2]
[365074436,1749443437950,-1156.73324957,0.00020072,2]
[365074438,1749443437960,-179.12361884,0.00020139,2]
[365074441,1749443437970,-161.284,0.00020139,2]
[365074443,1749443437980,-1595.3287817,0.00020239,2]
[365074445,1749443437990,-1156.73324957,0.00020245,2]
[365074447,1749443437999,-440.0,0.00020273,2]
[365074449,1749443438009,-440.0,0.00020273,2]
[365074451,1749443438019,-440.0,0.00020273,2]
[365074453,1749443438029,-835.05,0.00020273,2]
[365074455,1749443438039,-440.0,0.00020273,2]
[365074457,1749443438050,-708.25,0.00020273,2]
[365074459,1749443438060,-440.0,0.00020273,2]
[365074461,1749443438069,-440.0,0.00020273,2]
[365074462,1749443438079,-521.98,0.00020273,2]
[365074463,1749443438088,-1588.95,0.00020273,2]
[365074464,1749443438098,-440.0,0.00020273,2]
[365074465,1749443438108,-799.94,0.00020273,2]
[365074466,1749443438118,-788.53,0.00020273,2]
[365074467,1749443438127,-440.0,0.00020273,2]
[365074468,1749443438137,-440.0,0.00020273,2]
[365074469,1749443438146,-1125.89,0.00020273,2]
[365074470,1749443438156,-960.15,0.00020273,2]
[365074471,1749443438166,-660.54,0.00020273,2]
[365074472,1749443438176,-440.0,0.00020273,2]
[365074473,1749443438186,-440.0,0.00020273,2]
[365074474,1749443438196,-1594.69,0.00020273,2]
[365074475,1749443438205,-1416.3,0.00020273,2]
[365074476,1749443438214,-1347.81,0.00020273,2]
[365074477,1749443438224,-440.0,0.00020273,2]
[365074478,1749443438233,-1506.65,0.00020273,2]
[365074479,1749443438242,-440.0,0.00020273,2]
[365074480,1749443438252,-440.0,0.00020273,2]
[365074481,1749443438261,-440.0,0.00020273,2]
[365074482,1749443438270,-628.75,0.00020273,2]
[365074483,1749443438281,-440.0,0.00020273,2]
[365074484,1749443438290,-440.0,0.00020273,2]
[365074485,1749443438299,-1156.73324957,0.00020417,3]
[365074486,1749443438309,-500.0,0.00020547,2]
[365074487,1749443438319,-440.0,0.00020547,2]
[365074488,1749443438330,-440.0,0.00020547,2]
[365074489,1749443438340,-440.0,0.00020547,2]
[365074490,1749443438351,-835.05,0.00020547,2]
[365074491,1749443438361,-440.0,0.00020547,2]
[365074492,1749443438373,-708.25,0.00020547,2]
[365074493,1749443438384,-440.0,0.00020547,2]
[365074494,1749443438396,-440.0,0.00020547,2]
[365074495,1749443438405,-521.98,0.00020547,2]
[365074496,1749443438415,-1588.95,0.00020547,2]
[365074497,1749443438426,-440.0,0.00020547,2]
[365074498,1749443438437,-799.94,0.00020547,2]
[365074499,1749443438447,-788.53,0.00020547,2]
[365074500,1749443438457,-440.0,0.00020547,2]
[365074501,1749443438467,-440.0,0.00020547,2]
[365074502,1749443438476,-1125.89,0.00020547,2]
[365074503,1749443438486,-960.15,0.00020547,2]
[365074504,1749443438496,-660.54,0.00020547,2]
[365074505,1749443438506,-440.0,0.00020547,2]
[365074506,1749443438516,-440.0,0.00020547,2]
[365074507,1749443438526,-1594.69,0.00020547,2]
[365074508,1749443438535,-1416.3,0.00020547,2]
[365074509,1749443438545,-1347.81,0.00020547,2]
[365074510,1749443438558,-440.0,0.00020547,2]
[365074511,1749443438568,-1506.65,0.00020547,2]
[365074512,1749443438577,-440.0,0.00020547,2]
[365074513,1749443438587,-628.75,0.00020547,2]
[365074514,1749443438597,-440.0,0.00020547,2]
[365074515,1749443438606,-440.0,0.00020547,2]
[365074516,1749443438616,-158.716035,0.00020548,2]